[Event "Late-Titled-Tuesday-Blitz-April-16-2024"]
[Site "Chess.com"]
[Date "2024.04.16"]
[Round "2"]
[White "jaskol95"]
[Black "kalxandria"]
[Result "0-1"]
[WhiteElo "2531"]
[BlackElo "2225"]
[TimeControl "180+1"]
[EndTime "14:18:06 PDT"]
[Termination "kalxandria won by checkmate"]

1. e4 {[%clk 0:02:46.3]} 1... c5 {[%clk 0:02:59.3]} 2. Nf3 {[%clk 0:02:46.6]}
2... d6 {[%clk 0:02:58.7]} 3. b3 {[%clk 0:02:44]} 3... Nf6 {[%clk 0:02:54]} 4.
Nc3 {[%clk 0:02:44]} 4... a6 {[%clk 0:02:51.4]} 5. Bb2 {[%clk 0:02:43.7]} 5...
Nc6 {[%clk 0:02:49.2]} 6. a4 {[%clk 0:02:42]} 6... Nd4 {[%clk 0:02:43.1]} 7. h3
{[%clk 0:02:38.7]} 7... g6 {[%clk 0:02:40]} 8. Bc4 {[%clk 0:02:32.9]} 8... Bg7
{[%clk 0:02:37.7]} 9. a5 {[%clk 0:02:28.8]} 9... Nc6 {[%clk 0:02:33]} 10. O-O
{[%clk 0:02:23.2]} 10... Nxa5 {[%clk 0:02:25.2]} 11. Be2 {[%clk 0:02:22.4]}
11... Nc6 {[%clk 0:02:23.7]} 12. Nd5 {[%clk 0:02:15.6]} 12... O-O {[%clk
0:02:17.8]} 13. Nxf6+ {[%clk 0:02:15.7]} 13... Bxf6 {[%clk 0:02:16.8]} 14. Bxf6
{[%clk 0:02:15.7]} 14... exf6 {[%clk 0:02:17.7]} 15. d4 {[%clk 0:02:07.9]} 15...
Re8 {[%clk 0:02:12.7]} 16. Bd3 {[%clk 0:01:58.8]} 16... cxd4 {[%clk 0:02:06.5]}
17. Ra4 {[%clk 0:01:53.7]} 17... Qb6 {[%clk 0:02:05.3]} 18. Re1 {[%clk
0:01:47.5]} 18... Bd7 {[%clk 0:02:03.5]} 19. Bf1 {[%clk 0:01:46.2]} 19... Ne5
{[%clk 0:02:01.1]} 20. Rxd4 {[%clk 0:01:39.9]} 20... Nxf3+ {[%clk 0:02:00.3]}
21. gxf3 {[%clk 0:01:40.8]} 21... Rad8 {[%clk 0:01:30.3]} 22. Rxd6 {[%clk
0:01:38.7]} 22... Bc6 {[%clk 0:01:29.9]} 23. Bc4 {[%clk 0:01:31.6]} 23... f5
{[%clk 0:01:23.5]} 24. e5 {[%clk 0:01:13]} 24... Rxd6 {[%clk 0:01:14.5]} 25.
Qxd6 {[%clk 0:01:11.1]} 25... Qd8 {[%clk 0:01:09.3]} 26. Qxd8 {[%clk 0:00:23.2]}
26... Rxd8 {[%clk 0:01:10.2]} 27. Kg2 {[%clk 0:00:23]} 27... Rd2 {[%clk
0:01:08.2]} 28. Bd3 {[%clk 0:00:20.6]} 28... Kg7 {[%clk 0:01:06.5]} 29. Kg3
{[%clk 0:00:21.1]} 29... g5 {[%clk 0:01:04.6]} 30. h4 {[%clk 0:00:20]} 30... h6
{[%clk 0:01:03.6]} 31. hxg5 {[%clk 0:00:20.1]} 31... hxg5 {[%clk 0:01:04.5]} 32.
f4 {[%clk 0:00:20.8]} 32... gxf4+ {[%clk 0:00:59.1]} 33. Kxf4 {[%clk 0:00:21.2]}
33... Rxf2+ {[%clk 0:00:58.3]} 34. Kg3 {[%clk 0:00:21.1]} 34... Rf3+ {[%clk
0:00:57]} 35. Kh4 {[%clk 0:00:21.7]} 35... f4 {[%clk 0:00:54.1]} 36. Kg4 {[%clk
0:00:18.4]} 36... Rf2 {[%clk 0:00:52.9]} 37. Re2 {[%clk 0:00:18.7]} 37... Bf3+
{[%clk 0:00:46.6]} 38. Kxf4 {[%clk 0:00:19.3]} 38... Bxe2+ {[%clk 0:00:45.4]}
39. Ke3 {[%clk 0:00:20.2]} 39... Bxd3 {[%clk 0:00:44.8]} 40. Kxf2 {[%clk
0:00:20.8]} 40... Bxc2 {[%clk 0:00:44.6]} 41. b4 {[%clk 0:00:21.7]} 41... Kg6
{[%clk 0:00:43.6]} 42. Ke3 {[%clk 0:00:22.6]} 42... Kf5 {[%clk 0:00:43.7]} 43.
Kd4 {[%clk 0:00:23.5]} 43... Bb1 {[%clk 0:00:42.8]} 44. Kd5 {[%clk 0:00:23.9]}
44... Be4+ {[%clk 0:00:34.6]} 45. Kd6 {[%clk 0:00:24.2]} 45... b6 {[%clk
0:00:34.1]} 46. Kc7 {[%clk 0:00:18]} 46... a5 {[%clk 0:00:33.5]} 47. Kxb6 {[%clk
0:00:18.9]} 47... axb4 {[%clk 0:00:32.8]} 48. Kc5 {[%clk 0:00:19.8]} 48... b3
{[%clk 0:00:33.3]} 49. Kc4 {[%clk 0:00:20.1]} 49... b2 {[%clk 0:00:33.6]} 50.
Kd4 {[%clk 0:00:20.9]} 50... b1=Q {[%clk 0:00:32.7]} 51. Kc3 {[%clk 0:00:20.7]}
51... Qd3+ {[%clk 0:00:32.1]} 52. Kb2 {[%clk 0:00:21.4]} 52... Qc2+ {[%clk
0:00:31.3]} 53. Ka3 {[%clk 0:00:22.1]} 53... Qb1 {[%clk 0:00:31]} 54. e6 {[%clk
0:00:22.2]} 54... Kxe6 {[%clk 0:00:28.4]} 55. Ka4 {[%clk 0:00:23.1]} 55... f5
{[%clk 0:00:27.5]} 56. Ka5 {[%clk 0:00:24]} 56... f4 {[%clk 0:00:27.5]} 57. Ka6
{[%clk 0:00:24.9]} 57... Bc2 {[%clk 0:00:26.3]} 58. Ka7 {[%clk 0:00:25.8]} 58...
Qb5 {[%clk 0:00:25.7]} 59. Ka8 {[%clk 0:00:26.1]} 59... f3 {[%clk 0:00:25.1]}
60. Ka7 {[%clk 0:00:27]} 60... f2 {[%clk 0:00:25]} 61. Ka8 {[%clk 0:00:27.9]}
61... f1=R {[%clk 0:00:22.8]} 62. Ka7 {[%clk 0:00:28.8]} 62... Ra1# {[%clk
0:00:21.8]} 0-1

[Event "Late-Titled-Tuesday-Blitz-April-16-2024"]
[Site "Chess.com"]
[Date "2024.04.16"]
[Round "2"]
[White "kripri"]
[Black "Franmu14"]
[Result "1/2-1/2"]
[WhiteElo "2405"]
[BlackElo "2719"]
[TimeControl "180+1"]
[EndTime "14:18:06 PDT"]
[Termination "Game drawn by repetition"]

1. e4 {[%clk 0:03:00.9]} 1... e5 {[%clk 0:02:59.2]} 2. Nf3 {[%clk 0:03:00.9]}
2... Nc6 {[%clk 0:03:00.1]} 3. Bc4 {[%clk 0:03:00.9]} 3... Bc5 {[%clk
0:03:00.1]} 4. O-O {[%clk 0:03:01]} 4... d6 {[%clk 0:02:58.4]} 5. d3 {[%clk
0:03:00.7]} 5... Nf6 {[%clk 0:02:58.4]} 6. c3 {[%clk 0:03:01.1]} 6... a5 {[%clk
0:02:56.9]} 7. Re1 {[%clk 0:02:52.9]} 7... Ba7 {[%clk 0:02:55.8]} 8. h3 {[%clk
0:02:50.9]} 8... h6 {[%clk 0:02:55.8]} 9. d4 {[%clk 0:02:44.3]} 9... O-O {[%clk
0:02:55.4]} 10. Na3 {[%clk 0:02:28.9]} 10... Re8 {[%clk 0:02:52.7]} 11. d5
{[%clk 0:02:24.1]} 11... Ne7 {[%clk 0:02:51.2]} 12. Nc2 {[%clk 0:02:19.9]} 12...
Ng6 {[%clk 0:02:49.8]} 13. Bd3 {[%clk 0:02:11.9]} 13... Nh5 {[%clk 0:02:47.3]}
14. Be3 {[%clk 0:02:07.8]} 14... Bxe3 {[%clk 0:02:44.4]} 15. fxe3 {[%clk
0:02:08.7]} 15... Nf6 {[%clk 0:02:39.6]} 16. Rf1 {[%clk 0:02:08.3]} 16... Nd7
{[%clk 0:02:39.5]} 17. b4 {[%clk 0:02:03.2]} 17... axb4 {[%clk 0:02:38.9]} 18.
cxb4 {[%clk 0:02:03.3]} 18... Nb6 {[%clk 0:02:37.6]} 19. Qe1 {[%clk 0:01:58.9]}
19... Bd7 {[%clk 0:02:33.3]} 20. Qg3 {[%clk 0:01:52.7]} 20... Rf8 {[%clk
0:02:31]} 21. h4 {[%clk 0:01:32.8]} 21... Ne7 {[%clk 0:02:29.9]} 22. h5 {[%clk
0:01:31.9]} 22... f5 {[%clk 0:02:28.1]} 23. Nh4 {[%clk 0:01:25.5]} 23... fxe4
{[%clk 0:01:55.8]} 24. Bxe4 {[%clk 0:01:25.4]} 24... Bb5 {[%clk 0:01:39.9]} 25.
Rxf8+ {[%clk 0:01:18.6]} 25... Qxf8 {[%clk 0:01:38.8]} 26. Ng6 {[%clk
0:01:14.5]} 26... Qf6 {[%clk 0:01:23.4]} 27. Nxe7+ {[%clk 0:01:00.5]} 27... Qxe7
{[%clk 0:01:24.3]} 28. Qg6 {[%clk 0:01:00.1]} 28... Qg5 {[%clk 0:01:24.1]} 29.
Qh7+ {[%clk 0:00:54.6]} 29... Kf7 {[%clk 0:01:23.7]} 30. Bg6+ {[%clk 0:00:52.5]}
30... Kf6 {[%clk 0:01:23.8]} 31. Bd3 {[%clk 0:00:33.8]} 31... Bxd3 {[%clk
0:01:13.9]} 32. Qxd3 {[%clk 0:00:34.4]} 32... Ke7 {[%clk 0:01:14.2]} 33. e4
{[%clk 0:00:22.8]} 33... Qxh5 {[%clk 0:00:53.7]} 34. Ne3 {[%clk 0:00:22.8]}
34... g6 {[%clk 0:00:54.3]} 35. a3 {[%clk 0:00:19.7]} 35... Nd7 {[%clk
0:00:47.7]} 36. Rc1 {[%clk 0:00:19.6]} 36... Rc8 {[%clk 0:00:47.1]} 37. Rf1
{[%clk 0:00:19.2]} 37... Qg5 {[%clk 0:00:43.1]} 38. Nc4 {[%clk 0:00:19.3]} 38...
h5 {[%clk 0:00:37.9]} 39. a4 {[%clk 0:00:16.3]} 39... h4 {[%clk 0:00:31.7]} 40.
a5 {[%clk 0:00:16.6]} 40... Rh8 {[%clk 0:00:26.9]} 41. Qh3 {[%clk 0:00:16.5]}
41... Qg3 {[%clk 0:00:17.2]} 42. Qe6+ {[%clk 0:00:16]} 42... Kd8 {[%clk
0:00:17.7]} 43. Rf7 {[%clk 0:00:08.2]} 43... Qe1+ {[%clk 0:00:12.5]} 44. Kh2
{[%clk 0:00:08.4]} 44... Qg3+ {[%clk 0:00:12.7]} 45. Kg1 {[%clk 0:00:08.6]}
45... Qe1+ {[%clk 0:00:13.4]} 46. Rf1 {[%clk 0:00:07.6]} 46... Qg3 {[%clk
0:00:09.2]} 47. Rf7 {[%clk 0:00:07.6]} 1/2-1/2

[Event "Late-Titled-Tuesday-Blitz-April-16-2024"]
[Site "Chess.com"]
[Date "2024.04.16"]
[Round "2"]
[White "XDPS"]
[Black "jbking07"]
[Result "1-0"]
[WhiteElo "2815"]
[BlackElo "2407"]
[TimeControl "180+1"]
[EndTime "14:18:07 PDT"]
[Termination "XDPS won by resignation"]

1. d4 {[%clk 0:03:00.9]} 1... Nf6 {[%clk 0:02:59.9]} 2. c4 {[%clk 0:02:59.4]}
2... e6 {[%clk 0:03:00.1]} 3. Nc3 {[%clk 0:03:00.1]} 3... d5 {[%clk 0:03:00.2]}
4. Nf3 {[%clk 0:03:00.1]} 4... Be7 {[%clk 0:03:00.2]} 5. Bf4 {[%clk 0:02:59.8]}
5... O-O {[%clk 0:02:59.8]} 6. e3 {[%clk 0:03:00.2]} 6... c6 {[%clk 0:02:59.9]}
7. c5 {[%clk 0:03:00.1]} 7... b6 {[%clk 0:02:49]} 8. b4 {[%clk 0:03:00]} 8... a5
{[%clk 0:02:48.6]} 9. a3 {[%clk 0:03:00.4]} 9... axb4 {[%clk 0:02:46.9]} 10.
axb4 {[%clk 0:03:01.3]} 10... Rxa1 {[%clk 0:02:46.9]} 11. Qxa1 {[%clk
0:03:02.2]} 11... bxc5 {[%clk 0:02:47.3]} 12. bxc5 {[%clk 0:03:02.3]} 12... Nbd7
{[%clk 0:02:44]} 13. Qa7 {[%clk 0:02:58]} 13... Ne8 {[%clk 0:02:38.1]} 14. Bd3
{[%clk 0:02:56.4]} 14... f6 {[%clk 0:02:37.4]} 15. Na4 {[%clk 0:02:46.1]} 15...
g5 {[%clk 0:02:23.8]} 16. Bg3 {[%clk 0:02:45.7]} 16... g4 {[%clk 0:02:22.6]} 17.
Nd2 {[%clk 0:02:45.1]} 17... e5 {[%clk 0:02:04.4]} 18. O-O {[%clk 0:02:39.1]}
18... Ng7 {[%clk 0:02:02.6]} 19. Rb1 {[%clk 0:02:31]} 19... h5 {[%clk
0:02:01.3]} 20. Qa8 {[%clk 0:02:19.7]} 20... Qc7 {[%clk 0:01:51.2]} 21. Nb3
{[%clk 0:01:44.3]} 21... Bd8 {[%clk 0:01:49.4]} 22. Nb6 {[%clk 0:01:16.7]} 22...
Be7 {[%clk 0:01:06.2]} 23. Na5 {[%clk 0:01:09.3]} 23... Nb8 {[%clk 0:00:54.3]}
24. Nxd5 {[%clk 0:01:09]} 24... cxd5 {[%clk 0:00:52.3]} 25. Rxb8 {[%clk
0:01:09.3]} 25... Bd7 {[%clk 0:00:49.8]} 26. Rxf8+ {[%clk 0:01:09]} 26... Bxf8
{[%clk 0:00:48.6]} 27. Qxd5+ {[%clk 0:01:03.4]} 27... Be6 {[%clk 0:00:48.9]} 28.
Qa8 {[%clk 0:01:03.9]} 28... Kf7 {[%clk 0:00:35.7]} 29. c6 {[%clk 0:00:58]}
29... Bb4 {[%clk 0:00:34.2]} 30. Nc4 {[%clk 0:00:50.9]} 30... Bd5 {[%clk
0:00:26.9]} 31. dxe5 {[%clk 0:00:46]} 31... Bxc6 {[%clk 0:00:26.8]} 32. Qa2
{[%clk 0:00:33.4]} 32... Ne6 {[%clk 0:00:20.4]} 33. exf6 {[%clk 0:00:30.5]}
33... Qd8 {[%clk 0:00:20.7]} 34. Ne5+ {[%clk 0:00:30.3]} 34... Kxf6 {[%clk
0:00:21.1]} 35. Bh4+ {[%clk 0:00:18.3]} 35... Ng5 {[%clk 0:00:20.3]} 36. Qf7+
{[%clk 0:00:16.3]} 36... Kxe5 {[%clk 0:00:19.8]} 37. Qf4+ {[%clk 0:00:16.5]}
37... Ke6 {[%clk 0:00:17.9]} 38. Bc4+ {[%clk 0:00:13.1]} 38... Kd7 {[%clk
0:00:13.4]} 39. Bxg5 {[%clk 0:00:13.5]} 39... Be7 {[%clk 0:00:12.1]} 40. Qf5+
{[%clk 0:00:13.2]} 40... Kc7 {[%clk 0:00:12.4]} 41. Bf4+ {[%clk 0:00:13.1]}
41... Kb7 {[%clk 0:00:12.1]} 42. Qb1+ {[%clk 0:00:13.2]} 42... Qb6 {[%clk
0:00:10.3]} 43. Qxb6+ {[%clk 0:00:12.9]} 43... Kxb6 {[%clk 0:00:11.2]} 44. Bf7
{[%clk 0:00:12.5]} 44... h4 {[%clk 0:00:11.6]} 45. Be6 {[%clk 0:00:12.9]} 45...
h3 {[%clk 0:00:09.7]} 46. gxh3 {[%clk 0:00:12.8]} 46... g3 {[%clk 0:00:09]} 47.
hxg3 {[%clk 0:00:12.8]} 1-0

[Event "Late-Titled-Tuesday-Blitz-April-16-2024"]
[Site "Chess.com"]
[Date "2024.04.16"]
[Round "2"]
[White "RuperezA"]
[Black "platy3"]
[Result "0-1"]
[WhiteElo "2585"]
[BlackElo "2905"]
[TimeControl "180+1"]
[EndTime "14:18:10 PDT"]
[Termination "platy3 won on time"]

1. e4 {[%clk 0:03:00.9]} 1... c5 {[%clk 0:02:56.9]} 2. Nf3 {[%clk 0:03:00.8]}
2... e6 {[%clk 0:02:50.8]} 3. b3 {[%clk 0:03:00.5]} 3... b6 {[%clk 0:02:44.7]}
4. d4 {[%clk 0:02:59.3]} 4... cxd4 {[%clk 0:02:44.6]} 5. Nxd4 {[%clk 0:03:00.2]}
5... Bb7 {[%clk 0:02:45.1]} 6. Bd3 {[%clk 0:03:00.6]} 6... Nf6 {[%clk
0:02:40.2]} 7. Qe2 {[%clk 0:02:56.8]} 7... d6 {[%clk 0:02:17.5]} 8. Bb2 {[%clk
0:02:54.9]} 8... Nbd7 {[%clk 0:02:17.4]} 9. c4 {[%clk 0:02:54]} 9... Nc5 {[%clk
0:02:13.3]} 10. Nc3 {[%clk 0:02:46.5]} 10... Nxd3+ {[%clk 0:02:13.5]} 11. Qxd3
{[%clk 0:02:47.4]} 11... Be7 {[%clk 0:02:14.1]} 12. O-O {[%clk 0:02:43.2]} 12...
O-O {[%clk 0:02:14.4]} 13. Rad1 {[%clk 0:02:41.6]} 13... a6 {[%clk 0:02:14]} 14.
f4 {[%clk 0:02:37.8]} 14... Qc7 {[%clk 0:02:14]} 15. f5 {[%clk 0:02:26.7]} 15...
e5 {[%clk 0:02:13.9]} 16. Nc2 {[%clk 0:02:22.7]} 16... b5 {[%clk 0:02:13.9]} 17.
cxb5 {[%clk 0:02:06.2]} 17... axb5 {[%clk 0:02:14.3]} 18. Kh1 {[%clk 0:01:31.9]}
18... d5 {[%clk 0:01:38.7]} 19. exd5 {[%clk 0:01:24.8]} 19... b4 {[%clk
0:01:35.3]} 20. d6 {[%clk 0:00:51.7]} 20... Bxd6 {[%clk 0:01:35.1]} 21. Qxd6
{[%clk 0:00:48.5]} 21... Qxd6 {[%clk 0:01:35.4]} 22. Rxd6 {[%clk 0:00:49.4]}
22... bxc3 {[%clk 0:01:36]} 23. Bxc3 {[%clk 0:00:46.2]} 23... Rfc8 {[%clk
0:01:35.7]} 24. Rd3 {[%clk 0:00:18.9]} 24... Be4 {[%clk 0:01:34.9]} 25. Rg3
{[%clk 0:00:19.6]} 25... Bxc2 {[%clk 0:01:15.7]} 26. Bxe5 {[%clk 0:00:19.3]}
26... Kh8 {[%clk 0:01:09.2]} 27. Bxf6 {[%clk 0:00:18.1]} 27... gxf6 {[%clk
0:01:09.1]} 28. a4 {[%clk 0:00:18]} 28... Bxf5 {[%clk 0:01:05.9]} 29. h3 {[%clk
0:00:16.7]} 29... Be6 {[%clk 0:00:55.8]} 30. Rxf6 {[%clk 0:00:16.2]} 30... Rab8
{[%clk 0:00:56.5]} 31. Rff3 {[%clk 0:00:16.3]} 31... Rc1+ {[%clk 0:00:56.4]} 32.
Kh2 {[%clk 0:00:16.9]} 32... Rb1 {[%clk 0:00:56.9]} 33. a5 {[%clk 0:00:15.3]}
33... R1xb3 {[%clk 0:00:57.2]} 34. a6 {[%clk 0:00:15.6]} 34... R3b6 {[%clk
0:00:53.9]} 35. a7 {[%clk 0:00:15.1]} 35... Ra8 {[%clk 0:00:54.2]} 36. Ra3
{[%clk 0:00:15.8]} 36... Rb7 {[%clk 0:00:54.6]} 37. Rg5 {[%clk 0:00:14.7]} 37...
Rbxa7 {[%clk 0:00:54.7]} 38. Rag3 {[%clk 0:00:15.6]} 38... Ra3 {[%clk
0:00:53.1]} 39. Rxa3 {[%clk 0:00:12.7]} 39... Rxa3 {[%clk 0:00:54]} 40. h4
{[%clk 0:00:13.2]} 40... h6 {[%clk 0:00:53.7]} 41. Rh5 {[%clk 0:00:13]} 41...
Kg7 {[%clk 0:00:53.8]} 42. Re5 {[%clk 0:00:13.9]} 42... Kf6 {[%clk 0:00:53.6]}
43. Re4 {[%clk 0:00:13.2]} 43... Kf5 {[%clk 0:00:53]} 44. Rd4 {[%clk 0:00:12.7]}
44... Re3 {[%clk 0:00:52.9]} 45. g3 {[%clk 0:00:12.5]} 45... Re2+ {[%clk
0:00:52.7]} 46. Kg1 {[%clk 0:00:10.9]} 46... Ke5 {[%clk 0:00:53.2]} 47. Rf4
{[%clk 0:00:11.2]} 47... Bd5 {[%clk 0:00:52]} 48. Kf1 {[%clk 0:00:10.3]} 48...
Ra2 {[%clk 0:00:50.1]} 49. Rg4 {[%clk 0:00:05.3]} 49... f5 {[%clk 0:00:43.8]}
50. Rg6 {[%clk 0:00:05.4]} 50... h5 {[%clk 0:00:44.4]} 51. Rg5 {[%clk
0:00:05.4]} 51... Bf3 {[%clk 0:00:44.8]} 52. Rg8 {[%clk 0:00:04.6]} 52... Bg4
{[%clk 0:00:44.2]} 53. Re8+ {[%clk 0:00:04.2]} 53... Kd4 {[%clk 0:00:44.8]} 54.
Kg1 {[%clk 0:00:03.9]} 54... Re2 {[%clk 0:00:42.9]} 55. Ra8 {[%clk 0:00:02.8]}
55... Ke3 {[%clk 0:00:42.5]} 56. Ra3+ {[%clk 0:00:03.5]} 56... Ke4 {[%clk
0:00:43]} 57. Kf1 {[%clk 0:00:02.3]} 57... Re3 {[%clk 0:00:43.2]} 58. Ra4+
{[%clk 0:00:01.5]} 58... Kf3 {[%clk 0:00:42.2]} 59. Rf4+ {[%clk 0:00:01.4]}
59... Kxg3 {[%clk 0:00:42.6]} 60. Ra4 {[%clk 0:00:01.3]} 60... Bh3+ {[%clk
0:00:42.7]} 0-1

[Event "Late-Titled-Tuesday-Blitz-April-16-2024"]
[Site "Chess.com"]
[Date "2024.04.16"]
[Round "2"]
[White "artin10862"]
[Black "KChor05"]
[Result "1-0"]
[WhiteElo "2940"]
[BlackElo "2599"]
[TimeControl "180+1"]
[EndTime "14:18:11 PDT"]
[Termination "artin10862 won by resignation"]

1. e4 {[%clk 0:03:00.9]} 1... c5 {[%clk 0:02:59.2]} 2. Nf3 {[%clk 0:02:59.8]}
2... Nc6 {[%clk 0:02:59]} 3. Nc3 {[%clk 0:02:56.8]} 3... g6 {[%clk 0:02:59.3]}
4. d4 {[%clk 0:02:47.7]} 4... cxd4 {[%clk 0:02:59.6]} 5. Nxd4 {[%clk 0:02:48.4]}
5... Bg7 {[%clk 0:02:57.4]} 6. Nb3 {[%clk 0:02:49]} 6... Nf6 {[%clk 0:02:57]} 7.
Be2 {[%clk 0:02:48.8]} 7... O-O {[%clk 0:02:56.3]} 8. O-O {[%clk 0:02:49.4]}
8... a5 {[%clk 0:02:55.9]} 9. a4 {[%clk 0:02:48.9]} 9... Qc7 {[%clk 0:02:42.7]}
10. Re1 {[%clk 0:02:43.8]} 10... d6 {[%clk 0:02:38.5]} 11. Nd5 {[%clk 0:02:39]}
11... Nxd5 {[%clk 0:02:22]} 12. exd5 {[%clk 0:02:39.9]} 12... Nb4 {[%clk
0:02:20.5]} 13. c3 {[%clk 0:02:39.1]} 13... Bf5 {[%clk 0:02:15.4]} 14. cxb4
{[%clk 0:01:32.6]} 14... Bc2 {[%clk 0:02:14.3]} 15. Qd2 {[%clk 0:01:32.3]} 15...
Bxb3 {[%clk 0:02:14.1]} 16. Ra3 {[%clk 0:01:30.5]} 16... Bc4 {[%clk 0:02:14]}
17. Bxc4 {[%clk 0:01:20.6]} 17... Qxc4 {[%clk 0:02:14.9]} 18. bxa5 {[%clk
0:01:21.3]} 18... Rfc8 {[%clk 0:02:10.5]} 19. h3 {[%clk 0:01:15.6]} 19... Rc5
{[%clk 0:02:07.9]} 20. b4 {[%clk 0:01:14.4]} 20... Rxd5 {[%clk 0:02:00.4]} 21.
Qa2 {[%clk 0:01:12.8]} 21... Qxb4 {[%clk 0:01:57]} 22. Rae3 {[%clk 0:00:58.8]}
22... Re5 {[%clk 0:01:50.8]} 23. Bd2 {[%clk 0:00:57.1]} 23... Qc5 {[%clk
0:01:32.1]} 24. Qb3 {[%clk 0:00:56.1]} 24... Qc7 {[%clk 0:01:29.7]} 25. Rc1
{[%clk 0:00:52.2]} 25... Qd7 {[%clk 0:01:28.8]} 26. Rxe5 {[%clk 0:00:49.6]}
26... Bxe5 {[%clk 0:01:26.2]} 27. Rb1 {[%clk 0:00:49.3]} 27... Rd8 {[%clk
0:00:56.5]} 28. Qxb7 {[%clk 0:00:45.2]} 28... Qxa4 {[%clk 0:00:56.9]} 29. Qxe7
{[%clk 0:00:36.8]} 29... Rd7 {[%clk 0:00:57.4]} 30. Rb8+ {[%clk 0:00:22.6]}
30... Kg7 {[%clk 0:00:57.4]} 31. Qf8+ {[%clk 0:00:22.9]} 31... Kf6 {[%clk
0:00:57.6]} 32. Qh8+ {[%clk 0:00:23.1]} 32... Kf5 {[%clk 0:00:55.5]} 33. g4+
{[%clk 0:00:17.4]} 33... Ke4 {[%clk 0:00:52.6]} 34. Qc8 {[%clk 0:00:14.1]} 34...
Qd1+ {[%clk 0:00:35.5]} 35. Be1 {[%clk 0:00:11]} 35... Qxe1+ {[%clk 0:00:33.3]}
36. Kg2 {[%clk 0:00:11.6]} 36... Ra7 {[%clk 0:00:24]} 37. Qc4+ {[%clk 0:00:09]}
37... Bd4 {[%clk 0:00:16.8]} 38. Re8+ {[%clk 0:00:08.5]} 38... Kf4 {[%clk
0:00:15.7]} 39. Qxd4+ {[%clk 0:00:08.1]} 39... Kg5 {[%clk 0:00:16.1]} 40. Rxe1
{[%clk 0:00:07.3]} 1-0

[Event "Late-Titled-Tuesday-Blitz-April-16-2024"]
[Site "Chess.com"]
[Date "2024.04.16"]
[Round "2"]
[White "dianamirza"]
[Black "AlejandroArias"]
[Result "0-1"]
[WhiteElo "1933"]
[BlackElo "2426"]
[TimeControl "180+1"]
[EndTime "14:18:11 PDT"]
[Termination "AlejandroArias won by resignation"]

1. d3 {[%clk 0:02:56.5]} 1... d5 {[%clk 0:02:56.9]} 2. e4 {[%clk 0:02:56.7]}
2... d4 {[%clk 0:02:54.3]} 3. f4 {[%clk 0:02:56.5]} 3... c5 {[%clk 0:02:51.8]}
4. Nf3 {[%clk 0:02:57.4]} 4... Nc6 {[%clk 0:02:51]} 5. g3 {[%clk 0:02:57.6]}
5... e6 {[%clk 0:02:42.6]} 6. Bg2 {[%clk 0:02:57.7]} 6... Nf6 {[%clk 0:02:42.7]}
7. O-O {[%clk 0:02:58.6]} 7... Be7 {[%clk 0:02:41.6]} 8. b3 {[%clk 0:02:59]}
8... O-O {[%clk 0:02:39.2]} 9. Bb2 {[%clk 0:02:59.9]} 9... Qc7 {[%clk 0:02:37]}
10. Nbd2 {[%clk 0:03:00.8]} 10... b6 {[%clk 0:02:27.8]} 11. e5 {[%clk
0:02:59.8]} 11... Nd5 {[%clk 0:02:25.9]} 12. Ne4 {[%clk 0:02:58.6]} 12... Ne3
{[%clk 0:02:23.6]} 13. Qe2 {[%clk 0:02:59]} 13... Nxf1 {[%clk 0:02:22.6]} 14.
Rxf1 {[%clk 0:02:59.9]} 14... Bb7 {[%clk 0:02:22.1]} 15. Nfg5 {[%clk 0:02:59.8]}
15... h6 {[%clk 0:02:13.5]} 16. Nh3 {[%clk 0:02:56.2]} 16... Nb4 {[%clk
0:02:01.3]} 17. a3 {[%clk 0:02:53.2]} 17... Nd5 {[%clk 0:02:00.8]} 18. g4 {[%clk
0:02:39.8]} 18... Ne3 {[%clk 0:01:54.7]} 19. Rf3 {[%clk 0:02:35.8]} 19... Bxe4
{[%clk 0:01:48.5]} 20. dxe4 {[%clk 0:02:34.3]} 20... Rad8 {[%clk 0:01:37.2]} 21.
Nf2 {[%clk 0:02:32.8]} 21... Qc6 {[%clk 0:01:24.8]} 22. Rg3 {[%clk 0:02:29.2]}
22... Bh4 {[%clk 0:01:21.1]} 23. Rh3 {[%clk 0:02:20.5]} 23... Bxf2+ {[%clk
0:01:19.9]} 24. Kxf2 {[%clk 0:02:18.9]} 24... b5 {[%clk 0:01:12.7]} 25. g5
{[%clk 0:02:15.5]} 25... c4 {[%clk 0:00:57.8]} 26. gxh6 {[%clk 0:02:12]} 26...
g6 {[%clk 0:00:57.1]} 27. h7+ {[%clk 0:01:56.1]} 27... Kh8 {[%clk 0:00:54.8]}
28. f5 {[%clk 0:01:47.2]} 28... exf5 {[%clk 0:00:48.9]} 29. Rxe3 {[%clk
0:01:42.5]} 29... dxe3+ {[%clk 0:00:42.1]} 30. Qxe3 {[%clk 0:01:43.4]} 30...
Kxh7 {[%clk 0:00:23.7]} 31. Qh3+ {[%clk 0:01:35]} 31... Kg8 {[%clk 0:00:23.1]}
32. e6 {[%clk 0:01:33.4]} 32... f6 {[%clk 0:00:18.7]} 33. e7 {[%clk 0:01:27.9]}
33... Qc5+ {[%clk 0:00:18.4]} 34. Ke1 {[%clk 0:01:24.9]} 34... Qxe7 {[%clk
0:00:16.8]} 35. bxc4 {[%clk 0:01:22]} 35... fxe4 {[%clk 0:00:13.9]} 36. cxb5
{[%clk 0:01:21.7]} 36... e3 {[%clk 0:00:10.2]} 37. Qh6 {[%clk 0:01:14.2]} 37...
Qg7 {[%clk 0:00:08.4]} 38. Qf4 {[%clk 0:01:06.3]} 38... e2 {[%clk 0:00:07.3]}
39. Kxe2 {[%clk 0:01:00.2]} 39... Rfe8+ {[%clk 0:00:07.3]} 40. Kf2 {[%clk
0:00:55.6]} 40... Qe7 {[%clk 0:00:06.5]} 41. Qc4+ {[%clk 0:00:52.6]} 41... Kg7
{[%clk 0:00:05.9]} 42. Bd4 {[%clk 0:00:17.2]} 42... Qe1+ {[%clk 0:00:05.4]} 43.
Kf3 {[%clk 0:00:15.6]} 43... Qd1+ {[%clk 0:00:05.9]} 44. Kg3 {[%clk 0:00:13.4]}
44... Qxd4 {[%clk 0:00:06.6]} 45. Qxd4 {[%clk 0:00:13.4]} 45... Rxd4 {[%clk
0:00:06.4]} 46. Bc6 {[%clk 0:00:14.2]} 46... Rd6 {[%clk 0:00:06.4]} 47. c4
{[%clk 0:00:14.2]} 47... Re3+ {[%clk 0:00:05.7]} 0-1